fUST/lending_fUST_20260107
["ID","MTS","AMOUNT","RATE_DAILY","PERIOD"]
[400601480,1767739848555,-163.65081324,0.000319,120]
[400601482,1767739848565,-746.767727,0.000319,31]
[400601484,1767739848575,-746.767727,0.000319,31]
[400601486,1767739848585,-746.767727,0.000319,31]
[400601488,1767739848594,-746.767727,0.000319,31]
[400601490,1767739848604,-151.0,0.000319,31]
[400601492,1767739848613,-151.0,0.000319,31]
[400601494,1767739848623,-507.0,0.00031932,14]
[400601496,1767739848632,-3784.89856917,0.00031964,33]
[400601498,1767739848641,-5000.0,0.0003197,31]
[400601500,1767739848651,-5000.0,0.0003197,31]
[400601502,1767739848661,-5000.0,0.0003197,31]
[400601504,1767739848671,-5000.0,0.0003197,31]
[400601506,1767739848680,-176.786529,0.0003197,31]
[400601508,1767739848690,-176.786529,0.0003197,31]
[400601510,1767739848700,-176.786529,0.0003197,31]
[400601512,1767739848709,-176.786529,0.0003197,31]
[400601514,1767739848718,-151.0,0.0003197,31]
[400601516,1767739848728,-595.37131296,0.0003197,2]
[400601518,1767739848737,-2876.18991768,0.0003197,2]
[400601520,1767739848746,-200.64404451,0.00032,2]
[400601522,1767739848756,-1019.0,0.00032,7]
[400601525,1767739848766,-787.72,0.00032054,32]
[400601527,1767739848776,-500.0,0.0003216,2]
[400601529,1767739848785,-2612.25,0.000322,14]
[400601531,1767739848794,-22465.31,0.000322,2]
[400601533,1767739848804,-507.0,0.00032219,14]
[400601535,1767739848813,-193.51,0.000323,2]
[400601537,1767739848822,-1050.0,0.00032329,5]
[400601539,1767739848831,-1000.0,0.00032359,30]
[400601541,1767739848845,-300.0,0.00032384,2]
[400601543,1767739848855,-4000.0,0.000324,120]
[400601545,1767739848863,-300.0,0.00032411,2]
[400601547,1767739848872,-300.0,0.00032411,2]
[400601549,1767739848881,-300.0,0.00032411,2]
[400601551,1767739848891,-300.0,0.00032411,2]
[400601552,1767739848900,-300.0,0.00032411,2]
[400601554,1767739848909,-300.0,0.00032411,2]
[400601557,1767739848919,-300.0,0.00032411,2]
[400601558,1767739848928,-300.0,0.00032411,2]
[400601561,1767739848937,-300.0,0.00032411,2]
[400601563,1767739848946,-300.0,0.00032411,2]
[400601564,1767739848955,-300.0,0.00032411,2]
[400601567,1767739848966,-300.0,0.00032411,2]
[400601569,1767739848977,-300.0,0.00032411,2]
[400601570,1767739848986,-300.0,0.00032411,2]
[400601572,1767739848995,-300.0,0.00032411,2]
[400601574,1767739849004,-300.0,0.00032411,2]
[400601576,1767739849014,-300.0,0.00032411,2]
[400601578,1767739849023,-300.0,0.00032411,2]
[400601580,1767739849032,-300.0,0.00032411,2]
[400601582,1767739849042,-300.0,0.00032411,2]
[400601584,1767739849051,-300.0,0.00032411,2]
[400601586,1767739849060,-300.0,0.00032411,2]
[400601588,1767739849069,-300.0,0.00032411,2]
[400601590,1767739849078,-300.0,0.00032411,2]
[400601592,1767739849088,-300.0,0.00032411,2]
[400601594,1767739849097,-300.0,0.00032411,2]
[400601596,1767739849106,-300.0,0.00032411,2]
[400601598,1767739849115,-300.0,0.00032411,2]
[400601600,1767739849124,-300.0,0.00032411,2]
[400601602,1767739849134,-300.0,0.00032411,2]
[400601604,1767739849143,-300.0,0.00032411,2]
[400601606,1767739849152,-2000.0,0.00032438,7]
[400601608,1767739849162,-38000.0,0.00032486,10]
[400601610,1767739849171,-151.0,0.00032486,31]
[400601612,1767739849180,-151.0,0.00032486,31]
[400601614,1767739849189,-151.0,0.00032486,31]
[400601616,1767739849198,-222.545523,0.00032486,31]
[400601618,1767739849207,-177.372841,0.00032486,31]
[400601620,1767739849216,-500.0,0.00032486,31]
[400601622,1767739849224,-500.0,0.00032486,31]
[400601624,1767739849234,-500.0,0.00032486,31]
[400601626,1767739849244,-500.0,0.00032486,31]
[400601628,1767739849253,-38000.0,0.00032495,10]
[400601630,1767739849262,-38000.0,0.00032495,10]
[400601632,1767739849271,-151.0,0.00032495,31]
[400601634,1767739849280,-2846.21,0.000325,7]
[400601635,1767739849290,-151.0,0.00032503,31]
[400601638,1767739849299,-151.0,0.00032503,31]
[400601640,1767739849308,-194.712966,0.00032503,31]
[400601641,1767739849317,-194.712966,0.00032503,31]
[400601643,1767739849326,-194.712966,0.00032503,31]
[400601645,1767739849336,-194.712966,0.00032503,31]
[400601647,1767739849345,-151.0,0.00032503,31]
[400601650,1767739849354,-151.0,0.00032503,31]
[400601651,1767739849363,-151.0,0.00032503,31]
[400601653,1767739849372,-151.0,0.00032503,31]
[400601656,1767739849381,-151.0,0.00032503,31]
[400601657,1767739849391,-151.0,0.00032503,31]
[400601659,1767739849399,-151.0,0.00032503,31]
[400601661,1767739849409,-151.0,0.00032503,31]
[400601663,1767739849418,-151.0,0.00032503,31]
[400601665,1767739849427,-151.0,0.00032503,31]
[400601668,1767739849436,-166.442051,0.00032503,31]
[400601669,1767739849446,-166.442051,0.00032503,31]
[400601672,1767739849455,-166.442051,0.00032503,31]
[400601674,1767739849465,-166.4420446,0.00032503,31]
[400601675,1767739849474,-38000.0,0.00032503,10]
[400601678,1767739849484,-38000.0,0.00032503,10]
[400601679,1767739849493,-157.984935,0.00032512,31]
[400601681,1767739849502,-251.543708,0.00032512,31]
[400601683,1767739849512,-251.543708,0.00032512,31]
[400601685,1767739849521,-251.543708,0.00032512,31]
[400601687,1767739849530,-251.543705,0.00032512,31]
[400601689,1767739849539,-157.984935,0.00032512,31]
[400601691,1767739849548,-157.984935,0.00032512,31]
[400601693,1767739849558,-157.984928,0.00032512,31]
[400601695,1767739849566,-151.0,0.00032512,31]
[400601697,1767739849576,-256.917806,0.00032512,31]
[400601699,1767739849585,-151.0,0.00032512,31]
[400601701,1767739849595,-38000.0,0.00032512,10]
[400601704,1767739849604,-38000.0,0.00032512,10]
[400601706,1767739849614,-617.40005154,0.00032518,2]
[400601708,1767739849623,-2982.60894464,0.00032518,2]
[400601709,1767739849632,-38000.0,0.00032521,10]
[400601712,1767739849642,-38000.0,0.00032521,10]
[400601714,1767739849651,-153.811128,0.00032521,31]
[400601716,1767739849661,-545.1696347,0.00032548,2]
[400601718,1767739849670,-2178.49786026,0.00032548,2]
[400601720,1767739849679,-855.58186032,0.00032548,2]
[400601721,1767739849689,-3422.32744127,0.00032548,2]
[400601723,1767739849698,-7692.5365061,0.00032548,2]
[400601725,1767739849707,-451.08006092,0.00032548,2]
[400601727,1767739849716,-1802.51592343,0.00032548,2]
[400601729,1767739849725,-2697.04333263,0.00032588,2]
[400601731,1767739849734,-497.63544921,0.00032588,2]
[400601733,1767739849744,-1990.54179685,0.00032588,2]
[400601735,1767739849753,-189.15774829,0.00032588,2]
[400601737,1767739849762,-756.63099316,0.00032588,2]
[400601739,1767739849771,-1702.41973461,0.00032588,2]
[400601741,1767739849780,-3026.52397264,0.00032588,2]
[400601743,1767739849791,-4728.94370725,0.00032588,2]
[400601745,1767739849800,-6809.67893844,0.00032588,2]
[400601747,1767739849809,-9268.72966621,0.00032588,2]
[400601749,1767739849819,-12093.98979467,0.00032588,2]
[400601751,1767739849828,-151.0,0.00032588,31]
[400601753,1767739849838,-787.72,0.00032602,33]
[400601755,1767739849847,-298.31,0.000327,7]
[400601757,1767739849856,-248.93,0.000327,7]
[400601759,1767739849865,-507.0,0.00032795,14]
[400601762,1767739849883,-205.8638811,0.00032849,2]
[400601764,1767739849894,-1319.1,0.00032876,120]
[400601766,1767739849903,-299.5,0.00032876,5]
[400601768,1767739849912,-1749.78,0.00032876,120]
[400601770,1767739849922,-6476.18,0.00032877,10]
[400601773,1767739849932,-11195.88,0.00032877,10]
[400601775,1767739849941,-9329.9,0.00032877,10]
[400601777,1767739849950,-7774.92,0.00032877,10]
[400601779,1767739849960,-500.0,0.00032877,5]
[400601781,1767739849974,-1150.0,0.00032877,5]
[400601783,1767739849985,-500.0,0.00032877,7]
[400601785,1767739849994,-500.0,0.00032877,7]
[400601787,1767739850004,-500.0,0.00032877,7]
[400601789,1767739850014,-500.0,0.00032877,7]
[400601791,1767739850024,-541.79744446,0.00032877,7]
[400601793,1767739850034,-500.0,0.00032877,7]
[400601794,1767739850046,-500.0,0.00032877,7]
[400601796,1767739850055,-500.0,0.00032877,7]
[400601798,1767739850065,-500.0,0.00032877,7]
[400601800,1767739850075,-500.0,0.00032877,7]
[400601803,1767739850084,-500.0,0.00032877,7]
[400601805,1767739850095,-746.767727,0.00032877,31]
[400601807,1767739850104,-746.767727,0.00032877,31]
[400601809,1767739850114,-746.767727,0.00032877,31]
[400601811,1767739850124,-746.767724,0.00032877,31]
[400601813,1767739850133,-5000.0,0.00032877,31]
[400601815,1767739850143,-5000.0,0.00032877,31]
[400601817,1767739850153,-5000.0,0.00032877,31]
[400601819,1767739850162,-5000.0,0.00032877,31]
[400601821,1767739850173,-176.786529,0.00032877,31]
[400601823,1767739850182,-176.786529,0.00032877,31]
[400601825,1767739850192,-176.786529,0.00032877,31]
[400601841,1767739850329,-176.786525,0.00032877,31]
[400601843,1767739850339,-271.757998,0.00032877,31]
[400601845,1767739850349,-151.0,0.00032877,31]
[400601847,1767739850358,-151.0,0.00032877,31]
[400601849,1767739850367,-1235.12677463,0.00032885,120]
[400601851,1767739850377,-15155.94856204,0.00032898,2]
[400601853,1767739850386,-185.65429275,0.000329,120]
[400601855,1767739850395,-1202.74496589,0.000329,120]
[400601857,1767739850404,-163.65081324,0.000329,120]
[400601859,1767739850414,-1319.1,0.00032904,120]
[400601861,1767739850423,-2000.0,0.00032918,15]
[400601863,1767739850434,-1319.1,0.00032931,120]
[400601865,1767739850443,-1319.1,0.00032958,120]
[400601867,1767739850452,-1319.1,0.00032986,120]
[400601869,1767739850461,-166.0,0.00033,14]
[400601871,1767739850470,-166.0,0.00033,14]
[400601873,1767739850479,-4181.40895331,0.00033,120]
[400601875,1767739850489,-1760.41887495,0.00033,4]
[400601877,1767739850498,-44357.83912315,0.00033,20]
[400601879,1767739850507,-166.0,0.00033,14]
[400601881,1767739850516,-1100.0,0.00033006,14]
[400601883,1767739850526,-1319.1,0.00033013,120]
[400601885,1767739850535,-1319.1,0.00033041,120]
[400601887,1767739850545,-640.24385345,0.00033066,2]
[400601889,1767739850554,-3092.96547559,0.00033066,2]
[400601891,1767739850563,-1319.1,0.00033068,120]
[400601893,1767739850572,-1319.1,0.00033095,120]
[400601895,1767739850581,-1500.0,0.000331,16]
[400601897,1767739850590,-1319.1,0.00033123,120]
[400601899,1767739850600,-1319.1,0.0003315,120]
[400601901,1767739850610,-787.72,0.0003315,34]
[400601903,1767739850619,-1319.1,0.00033178,120]
[400601905,1767739850628,-438.03,0.000332,2]
[400601907,1767739850637,-295.33605291,0.000332,117]
[400601909,1767739850647,-1319.1,0.00033205,120]
[400601911,1767739850656,-1319.1,0.00033232,120]
[400601913,1767739850664,-1319.1,0.0003326,120]
[400601915,1767739850674,-171.0,0.00033274,120]
[400601917,1767739850687,-2000.0,0.00033278,7]
[400601919,1767739850697,-1319.1,0.00033287,120]
[400601921,1767739850706,-151.0,0.00033287,31]
[400601923,1767739850716,-151.0,0.00033307,31]
[400601925,1767739850726,-1319.1,0.00033315,120]
[400601927,1767739850736,-1319.1,0.00033342,120]
[400601929,1767739850746,-1319.1,0.00033369,120]
[400601931,1767739850755,-4129.19617591,0.00033369,34]
[400601933,1767739850764,-507.0,0.0003337,30]
[400601935,1767739850774,-1319.1,0.00033397,120]
[400601937,1767739850783,-500.0,0.00033397,31]
[400601939,1767739850792,-500.0,0.00033397,31]
[400601941,1767739850801,-500.0,0.00033397,31]
[400601943,1767739850810,-500.0,0.00033397,31]
[400601945,1767739850819,-1319.1,0.00033424,120]
[400601947,1767739850828,-1319.1,0.00033452,120]
[400601949,1767739850837,-1319.1,0.00033479,120]
[400601951,1767739850846,-193.51,0.000335,2]
[400601953,1767739850856,-2612.25,0.000335,30]
[400601955,1767739850865,-22465.31,0.000335,14]
[400601957,1767739850875,-1319.28,0.00033506,120]
[400601959,1767739850884,-800.0,0.00033572,2]
[400601961,1767739850894,-3285.51526256,0.00033576,2]
[400601964,1767739850903,-1500.0,0.000336,16]
[400601965,1767739850912,-663.93287602,0.00033614,2]
[400601967,1767739850922,-3207.40519818,0.00033614,2]
[400601970,1767739850931,-500.0,0.0003365,10]
[400601972,1767739850940,-500.0,0.0003365,10]
[400601974,1767739850950,-507.0,0.00033658,30]
[400601976,1767739850960,-787.72,0.00033698,35]
[400601978,1767739850975,-750.41519508,0.00033698,120]
[400601980,1767739850984,-210.0,0.00033699,5]
[400601982,1767739850993,-1365.0,0.00033716,2]
[400601984,1767739851003,-2145.0,0.00033716,2]
[400601986,1767739851013,-628.0,0.00033716,2]
[400601988,1767739851022,-417.0,0.00033716,2]
[400601990,1767739851032,-714.0,0.00033716,2]
[400601992,1767739851044,-2846.21,0.000338,7]
[400601994,1767739851055,-777.0,0.000338,2]
[400601996,1767739851065,-1100.0,0.00033828,14]
[400601998,1767739851074,-1202.74496589,0.000339,120]
[400602000,1767739851084,-2573.21019914,0.00034,120]
[400602002,1767739851093,-1041.66666667,0.00034,120]
[400602004,1767739851103,-1032.9531429,0.00034,2]
[400602006,1767739851113,-800.0,0.00034016,2]
[400602008,1767739851122,-800.0,0.00034022,2]
[400602010,1767739851131,-800.0,0.00034067,2]
[400602012,1767739851140,-298.31,0.000341,7]
[400602014,1767739851150,-248.93,0.000341,7]
[400602016,1767739851159,-1500.0,0.000341,16]
[400602018,1767739851168,-800.0,0.00034117,2]
[400602021,1767739851178,-2000.0,0.00034118,7]
[400602023,1767739851188,-171.97363199,0.00034124,2]
[400602025,1767739851198,-800.0,0.00034146,2]
[400602027,1767739851207,-688.49839244,0.00034162,2]
[400602029,1767739851216,-3326.07919052,0.00034162,2]
[400602031,1767739851226,-152.80579,0.00034173,31]
[400602033,1767739851235,-800.0,0.00034186,2]
[400602035,1767739851244,-800.0,0.00034221,2]
[400602037,1767739851254,-787.72,0.00034246,36]
[400602039,1767739851264,-1749.78,0.00034246,120]
[400602041,1767739851273,-800.0,0.00034259,2]
[400602043,1767739851282,-1000.0,0.00034262,30]
[400602045,1767739851292,-539.0,0.00034262,30]
[400602047,1767739851302,-800.0,0.00034292,2]
[400602049,1767739851311,-800.0,0.00034301,2]
[400602051,1767739851321,-376.8200359,0.00034384,30]
[400602052,1767739851330,-376.8200359,0.00034384,30]
[400602054,1767739851340,-376.8200359,0.00034384,30]
[400602056,1767739851349,-376.8200359,0.00034384,30]
[400602058,1767739851358,-376.8200359,0.00034384,30]
[400602060,1767739851368,-376.8200359,0.00034384,30]
[400602062,1767739851378,-376.8200359,0.00034384,30]
[400602064,1767739851388,-376.8200359,0.00034384,30]
[400602066,1767739851397,-376.8200359,0.00034384,30]
[400602068,1767739851407,-376.8200359,0.00034384,30]
[400602070,1767739851416,-376.8200359,0.00034384,30]
[400602072,1767739851425,-376.8200359,0.00034384,30]
[400602074,1767739851434,-376.8200359,0.00034384,30]
[400602076,1767739851443,-438.03,0.000344,2]
[400602078,1767739851452,-151.0,0.00034413,31]
[400602080,1767739851462,-151.0,0.00034413,31]
[400602082,1767739851471,-194.712966,0.00034413,31]
[400602084,1767739851480,-194.712966,0.00034413,31]
[400602086,1767739851490,-194.712966,0.00034413,31]
[400602089,1767739851500,-194.712974,0.00034413,31]
[400602091,1767739851510,-299.5,0.00034438,6]
[400602092,1767739851520,-800.0,0.00034446,2]
[400602095,1767739851530,-507.0,0.00034521,30]
[400602097,1767739851539,-270.0,0.00034521,5]
[400602099,1767739851548,-507.0,0.00034521,30]
[400602101,1767739851557,-1364.653193,0.0003456,9]
[400602103,1767739851567,-600.0,0.0003456,2]
[400602104,1767739851575,-1000.0,0.0003458,9]
[400602107,1767739851585,-1205.834353,0.0003458,9]
[400602109,1767739851594,-281.0,0.000346,8]
[400602111,1767739851603,-1000.0,0.000346,9]
[400602113,1767739851613,-1000.0,0.000346,9]
[400602114,1767739851623,-250.0,0.000346,10]
[400602115,1767739851635,-449.0,0.000346,2]
[400602116,1767739851644,-1500.0,0.000346,16]
[400602117,1767739851653,-800.0,0.00034606,2]
[400602118,1767739851663,-745.0,0.00034624,11]
[400602119,1767739851672,-1100.0,0.0003465,14]
[400602120,1767739851681,-166.0,0.0003465,7]
[400602121,1767739851690,-166.0,0.0003465,7]
[400602122,1767739851700,-152.0,0.0003465,7]
[400602123,1767739851709,-166.0,0.0003465,7]
[400602124,1767739851718,-357.37586378,0.0003465,7]
[400602125,1767739851727,-152.0,0.0003465,7]
[400602126,1767739851736,-163.0,0.0003465,7]
[400602127,1767739851746,-152.0,0.0003465,7]
[400602128,1767739851755,-163.0,0.0003465,7]
[400602129,1767739851764,-152.0,0.0003465,7]
[400602130,1767739851774,-152.0,0.0003465,7]
[400602131,1767739851783,-185.22374852,0.0003465,7]
[400602132,1767739851792,-152.0,0.0003465,7]
[400602134,1767739851801,-152.0,0.0003465,7]
[400602135,1767739851810,-152.0,0.0003465,7]
[400602137,1767739851819,-152.0,0.0003465,7]
[400602139,1767739851828,-152.0,0.0003465,7]
[400602141,1767739851839,-153.76138875,0.0003465,7]
[400602144,1767739851850,-152.0,0.0003465,7]
[400602146,1767739851860,-284.0,0.0003465,7]
[400602148,1767739851869,-463.0,0.0003465,30]
[400602150,1767739851878,-5636.77460914,0.0003465,4]
[400602152,1767739851887,-18159.14383583,0.0003465,4]
[400602153,1767739851895,-428514.25711503,0.0003465,4]
[400602166,1767739852007,-151.0,0.000249,7]
[400602168,1767739852017,-2737.0872181,0.0003465,4]
[400602170,1767739852028,-6164.53943582,0.0003465,4]
[400602172,1767739852040,-4747.00643768,0.0003465,4]
[400602174,1767739852051,-776.68808795,0.0003465,4]
[400602177,1767739852062,-386.51,0.0003465,4]
[400602188,1767739852158,-475.0,0.00022,7]
[400602190,1767739852167,-475.0,0.00022,7]
[400602192,1767739852176,-475.0,0.00022,7]
[400602194,1767739852185,-475.0,0.00022,7]
[400602196,1767739852195,-475.0,0.00022,7]
[400602198,1767739852205,-475.0,0.00022,7]
[400602200,1767739852214,-475.0,0.00022,7]
[400602202,1767739852223,-224.055312,0.000249,7]
[400602215,1767739852330,-151.0,0.000273,7]
[400602217,1767739852340,-151.0,0.00030548,31]
[400602219,1767739852350,-151.0,0.000319,31]
[400602221,1767739852360,-674.93576893,0.00032548,2]
[400602223,1767739852370,-151.0,0.00032877,31]
[400602225,1767739852380,-4697.1435819,0.0003465,4]
[400602328,1767739853355,-475.0,0.00022,7]
[400602330,1767739853365,-475.0,0.00022,7]
[400602331,1767739853374,-421.74728822,0.00022,7]
[400604151,1767739876062,162.8,8.389e-05,2]
[400604152,1767739876381,244.19,8.77e-05,2]
[400604153,1767739876787,325.59,9.152e-05,2]
[400604154,1767739877312,406.99,9.533e-05,2]
[400604155,1767739878233,488.39,9.914e-05,2]
[400604157,1767739878668,569.79,0.00010296,2]
[400604158,1767739879608,651.18,0.00010677,2]
[400604159,1767739880253,732.58,0.00011058,2]
[400604160,1767739880660,813.98,0.0001144,2]
[400604161,1767739913819,5604.52,0.00013621,2]
[400604162,1767739913849,10000.01,0.00013621,2]
[400604163,1767739913877,10000.01,0.00013621,2]
[400604164,1767739913906,10000.01,0.00013621,2]
[400604165,1767739913933,10000.01,0.00013621,2]
[400604166,1767739952160,346.86,8.054e-05,2]
[400604167,1767739952594,693.71,8.438e-05,2]
[400604168,1767739957040,1040.57,8.822e-05,2]
[400604169,1767739957481,1387.42,9.205e-05,2]
[400604170,1767739972436,-235.62681107,9.589e-05,2]
[400604171,1767739975096,-296.0,9.589e-05,2]
[400604172,1767739976594,-195.61728058,9.589e-05,2]
[400604173,1767739979189,-188.77398064,9.589e-05,2]
[400604174,1767739981800,-245.72666961,9.589e-05,2]
[400604175,1767739983309,-343.68592397,9.589e-05,2]
[400604176,1767739984860,-205.20326364,9.589e-05,2]
[400604177,1767740036473,283.55,7.382e-05,2]
[400604178,1767740037411,567.1,7.733e-05,2]
[400604179,1767740037879,850.65,8.085e-05,2]
[400604180,1767740038320,1134.2,8.436e-05,2]
[400604181,1767740038724,1417.75,8.788e-05,2]
[400604182,1767740039155,1701.3,9.139e-05,2]
[400604183,1767740047515,-322.37673636,9.396e-05,2]
[400604184,1767740050697,-379.9797196,9.396e-05,2]
[400604185,1767740053451,-449.2235523,9.396e-05,2]
[400604186,1767740055140,-153.6883592,9.396e-05,2]
[400604187,1767740056659,-180.74,9.396e-05,2]
[400604188,1767740059688,-200.0683689,9.396e-05,2]
[400604189,1767740063215,-194.6471544,9.396e-05,2]
[400604190,1767740065337,-462.77222048,9.396e-05,2]
[400604191,1767740069108,-283.4228456,9.396e-05,2]
[400604192,1767740071187,-183.5603008,9.396e-05,2]
[400604193,1767740072627,-425.42367216,9.396e-05,2]
[400604194,1767740074692,-300.86380656,9.396e-05,2]
[400604195,1767740077848,-348.52789711,9.396e-05,2]
[400604196,1767740079926,-322.56750629,9.396e-05,2]
[400604197,1767740085634,-160.77133971,9.396e-05,2]
[400604198,1767740088977,-342.87325689,9.396e-05,2]
[400604199,1767740090503,-210.73383476,9.396e-05,2]
[400604200,1767740118500,270.41,7.455e-05,2]
[400604201,1767740118900,540.82,7.81e-05,2]
[400604202,1767740119314,811.23,8.165e-05,2]
[400604203,1767740119764,1081.65,8.52e-05,2]
[400604204,1767740120201,1352.06,8.875e-05,2]
[400604205,1767740120618,1622.47,9.23e-05,2]
[400604206,1767740137759,-77.75942888,9.396e-05,2]
[400604207,1767740137799,-1892.88,9.585e-05,2]
[400604208,1767740137836,-2163.29,9.94e-05,2]
[400604209,1767740138259,-2433.7,0.00010295,2]
[400604210,1767740138290,-296.0,0.00010396,2]
[400604211,1767740138326,-300.0,0.00010397,2]
[400604212,1767740138364,-300.0,0.00010397,2]
[400604213,1767740138400,-300.0,0.00010397,2]
[400604214,1767740138438,-300.0,0.00010397,2]
[400604215,1767740138475,-300.0,0.00010397,2]
[400604216,1767740138514,-300.0,0.00010397,2]
[400604217,1767740138551,-300.0,0.00010397,2]
[400604218,1767740138587,-40.61,0.00010397,2]
[400604219,1767740176786,-5000.0,0.00010293,2]
[400604220,1767740197970,231.08,8.063e-05,2]
[400604221,1767740198410,346.62,8.43e-05,2]
[400604222,1767740198851,462.16,8.796e-05,2]
[400604223,1767740199282,577.7,9.163e-05,2]
[400604224,1767740208073,-693.24,9.529e-05,2]
[400604225,1767740208113,-808.78,9.896e-05,2]
[400604226,1767740208150,-924.32,0.00010262,2]
[400604227,1767740208184,-147.33,0.00010292,2]
[400604228,1767740240460,-499.77739692,0.00010189,2]
[400604229,1767740240497,-4147.78520616,0.00010292,2]
[400604230,1767740259232,-896.06324393,0.00010189,2]
[400604231,1767740259267,-704.88479384,0.00010292,2]
[400604232,1767740259300,-249.0306426,0.00010448,2]
[400604233,1767740266615,5000.0,0.00010545,2]
[400604241,1767740279561,192.22,8.264e-05,2]
[400604242,1767740279980,256.29,8.624e-05,2]
[400604243,1767740280401,320.36,8.983e-05,2]
[400604244,1767740280828,384.43,9.342e-05,2]
[400604245,1767740281324,146.75263926,9.701e-05,2]
[400604246,1767740282028,-301.74736074,9.701e-05,2]
[400604247,1767740282064,-512.57,0.00010061,2]
[400604248,1767740282171,576.65,0.0001042,2]
[400604249,1767740289399,5000.0,0.00010545,2]
[400604250,1767740312383,2794.72527852,0.00010545,2]
[400604251,1767740332848,-2205.27472148,0.00010545,2]
[400604252,1767740337446,5000.0,0.00010545,2]
[400604253,1767740355201,178.93,9.296e-05,2]
[400604254,1767740355686,208.76,9.653e-05,2]
[400604255,1767740356095,201.77055704,0.00010011,2]
[400604256,1767740358160,-36.80944296,0.00010011,2]
[400604257,1767740358196,-268.4,0.00010368,2]
[400604258,1767740359992,5000.0,0.00010545,2]
[400604259,1767740382192,4154.49725268,0.00010545,2]
[400604260,1767740397065,235.0938614,0.0001005,2]
[400604261,1767740397088,155.9372186,0.0001005,2]
[400604262,1767740426385,165.92,0.00010254,2]
[400604263,1767740439622,-300.0,0.00010603,2]
[400604264,1767740439655,-300.0,0.00010603,2]
[400604265,1767740439687,-569.0,0.00010603,2]
[400604266,1767740439718,-300.0,0.00010603,2]
[400604267,1767740462551,300.0,0.00010603,2]
[400604268,1767740463004,5000.0,0.00010603,2]
[400604269,1767740470954,504.2734112,0.00010603,2]
[400604270,1767740493317,1257.7365888,0.00010603,2]
[400604271,1767740493344,3237.99,0.00010603,2]
[400604272,1767740498526,179.2,8.789e-05,2]
[400604273,1767740498954,215.04,9.141e-05,2]
[400604274,1767740499411,250.88,9.492e-05,2]
[400604275,1767740499824,286.72,9.844e-05,2]
[400604276,1767740500285,322.55,0.00010195,2]
[400604277,1767740500709,358.39,0.00010547,2]
[400604278,1767740522287,300.0,0.00010603,2]
[400604291,1767740567995,193.01,7.607e-05,2]
[400604292,1767740568411,289.51,7.953e-05,2]
[400604293,1767740568917,386.02,8.298e-05,2]
[400604294,1767740569350,482.52,8.644e-05,2]
[400604295,1767740569793,579.03,8.99e-05,2]
[400604296,1767740570237,675.53,9.336e-05,2]
[400604297,1767740570688,772.04,9.681e-05,2]
[400604298,1767740571117,868.54,0.00010027,2]
[400604299,1767740571549,603.04,0.00010373,2]
[400604300,1767740571584,362.01,0.00010373,2]
[400604301,1767740583439,300.0,0.00010603,2]
[400604302,1767740642418,300.0,0.00010603,2]
[400604303,1767740644828,188.15,7.613e-05,2]
[400604304,1767740645262,282.22,7.959e-05,2]
[400604305,1767740645697,376.3,8.305e-05,2]
[400604306,1767740646125,470.37,8.651e-05,2]
[400604307,1767740646565,564.45,8.997e-05,2]
[400604308,1767740646982,658.52,9.343e-05,2]